[Event "44th Chess Olympiad Women 2022"]
[Site "Chennai"]
[Date "2022.08.05"]
[Round "7.4"]
[White "Peycheva, Gergana"]
[Black "Socko, Monika"]
[Result "1/2-1/2"]
[WhiteElo "2295"]
[BlackElo "2416"]
[Annotator "TA"]
[PlyCount "163"]
[EventDate "2022.??.??"]
[TimeControl "60"]

{[%evp 10,163,9,-19,62,50,49,47,48,48,43,39,41,32,55,36,43,44,58,50,53,60,47,
24,33,39,31,18,23,24,52,0,30,18,19,27,27,0,116,119,118,112,118,118,120,111,119,
114,117,111,112,116,125,128,140,131,166,141,194,152,144,150,146,134,132,132,
139,126,120,126,133,114,145,123,128,129,125,90,80,88,108,108,108,101,101,101,
101,87,89,67,89,98,72,72,589,516,911,520,477,473,452,454,395,305,269,0,0,0,0,0,
0,0,0,0,0,0,0,0,0,0,0,0,0,0,0,0,0,0,0,0,0,0,0,0,0,0,0,0,0,0,0,0,0,0,0,0,0,0,0,
0,0,0,0,0,0,0]} 1. d4 {[%emt 0:00:03]} Nf6 {[%emt 0:00:08]} 2. c4 {[%emt 0:00:
00]} e6 {[%emt 0:00:04]} 3. Nc3 {[%emt 0:00:39]} Bb4 {[%emt 0:00:06]} 4. Qc2 {
[%emt 0:00:35]} O-O {[%emt 0:00:10]} 5. e4 {[%emt 0:00:38][%cal Ye2e4,Ye4e5]}
d6 {[%emt 0:00:06]} 6. e5 {[%emt 0:01:26]} Ne8 {[%emt 0:09:16] Recently 6...
Nfd7 got a lot of attention. E32: Nimzo-Indian: Classical (4 Qc2): 4...0-0.} (
6... dxe5 $11 7. dxe5 Ng4) 7. Nf3 {[%emt 0:04:22]} c5 {[%emt 0:00:00]} 8. dxc5
{[%emt 0:04:13] [#]} dxe5 $146 {[%emt 0:02:38] White is slightly better.} ({
Predecessor:} 8... Bxc5 9. exd6 Nc6 10. a3 Bxd6 11. Bd3 f5 12. Bg5 Nf6 13.
O-O-O h6 14. Bd2 a6 {1-0 (32) Benitah,Y (2396)-Berend,F (2328) Geneve 2016}) 9.
Nxe5 {[%emt 0:05:12]} Bxc5 {[%emt 0:02:53]} 10. Bd3 {[%emt 0:02:59]} f5 {
[%emt 0:04:08]} 11. O-O {[%emt 0:04:43]} Nd7 {[%emt 0:05:27]} 12. Bf4 {[%emt 0:
09:42]} Nxe5 {[%emt 0:05:29]} 13. Bxe5 {[%emt 0:00:34]} Nf6 {[%emt 0:00:00]}
14. Rad1 {[%emt 0:15:57][%cal Yd3f5] aiming for Bxf5!} Bd7 {[%emt 0:00:00]} 15.
Be2 {[%emt 0:04:19]} Qe8 {[%emt 0:05:57]} 16. Bf3 {[%emt 0:08:08]} Bc6 {
[%emt 0:01:03]} 17. Qe2 {[%emt 0:00:25]} Rc8 {[%emt 0:08:19]} 18. Rfe1 {
[%emt 0:06:30]} Bxf3 {[%emt 0:07:13]} 19. Qxf3 {[%emt 0:00:04]} Ng4 {[%emt 0:
00:00]} 20. Rd2 {[%emt 0:08:32]} (20. Bd4 $14) 20... Rd8 {[%emt 0:08:17]} 21.
Rde2 {[%emt 0:03:28][%cal Yd2e2,Ye2e6,Ye6d6]} ({Don't blunder} 21. Qxb7 $2 Nxe5
22. Rxd8 Qxd8 $19) 21... b6 {[%emt 0:11:46]} 22. Bg3 {[%emt 0:00:00]} Qf7 {
[%emt 0:02:55]} 23. Rxe6 $40 {[%emt 0:04:02] Black needs to defend precisely.}
Rd4 {[%emt 0:02:15]} (23... f4 $1 $11 24. Bh4 Qh5) 24. h3 $16 {[%emt 0:01:44]}
Nf6 {[%emt 0:01:40]} 25. Qxf5 {[%emt 0:01:08]} Rxc4 {[%emt 0:00:11][%cal Yd4c4,
Yc4c5,Yc5f5]} 26. Bd6 {[%emt 0:01:45]} Bxd6 {[%emt 0:06:08]} 27. Rxd6 {[%emt 0:
00:01]} Rc5 {[%emt 0:00:40]} 28. Qe6 {[%emt 0:03:56] White is much more active.
} h6 {[%emt 0:01:34]} 29. Qxf7+ {[%emt 0:01:31]} Rxf7 {[%emt 0:00:08]} 30. Re2
{[%emt 0:01:02]} Rf5 {[%emt 0:00:00]} 31. g3 {[%emt 0:01:05]} h5 {[%emt 0:02:
59]} 32. Kg2 {[%emt 0:00:11]} g5 {[%emt 0:01:52]} 33. Rde6 {[%emt 0:01:47]} Kf8
{[%emt 0:00:25]} (33... Kg7 $16 {was necessary.} 34. a3 Rd7 35. Re7+ Kf8 36.
Rxd7 Nxd7) 34. R6e5 {[%emt 0:00:25]} Nd7 {[%emt 0:01:00]} 35. Rxf5 {[%emt 0:01:
37]} Rxf5 {[%emt 0:00:01] Endgame KRN-KRN} 36. Re4 {[%emt 0:01:00]} Nc5 {
[%emt 0:00:28]} 37. Rd4 {[%emt 0:00:29]} Ke7 {[%emt 0:00:46]} 38. Nd5+ {
[%emt 0:00:36]} Ke6 {[%emt 0:00:00]} 39. Ne3 {[%emt 0:00:48]} Re5 {[%emt 0:01:
47]} 40. Rd8 {[%emt 0:00:47]} Kf7 {[%emt 0:03:06]} 41. Ra8 {[%emt 0:07:24]} Re7
{[%emt 0:01:27]} 42. Rh8 {[%emt 0:02:08]} Kg6 {[%emt 0:00:08]} 43. Rh6+ {
[%emt 0:05:17]} Kxh6 {[%emt 0:00:00]} 44. Nf5+ {[%emt 0:00:04]} Kh7 {[%emt 0:
00:04]} 45. Nxe7 {[%emt 0:00:05] KN-KN} Nd3 {[%emt 0:02:12]} 46. Nc8 {[%emt 0:
02:02]} Nxb2 {[%emt 0:00:30]} 47. Nxa7 {[%emt 0:00:04]} Kg6 {[%emt 0:00:31]}
48. Kf3 {[%emt 0:01:52]} Kf5 {[%emt 0:00:05]} 49. Nc8 {[%emt 0:05:03]} g4+ {
[%emt 0:12:01]} 50. hxg4+ {[%emt 0:00:33]} hxg4+ {[%emt 0:00:02]} 51. Ke2 $1 {
[%emt 0:03:47]} Nc4 {[%emt 0:00:06]} (51... Na4 $16 {keeps some hope.}) 52. Kd3
$18 {[%emt 0:03:21]} Ne5+ {[%emt 0:00:18]} (52... Nb2+ $142 53. Kd4 Nd1 54.
Nxb6 Ke6) 53. Kd4 {[%emt 0:00:26]} Nc6+ {[%emt 0:00:17] [#]} 54. Ke3 $1 {
[%emt 0:01:05]} Nb4 {[%emt 0:04:33] [#]} 55. a4 {[%emt 0:00:33]} Nd5+ {[%emt 0:
00:03]} 56. Kd4 {[%emt 0:00:07]} Ke6 {[%emt 0:00:02]} 57. Nxb6 $2 {[%emt 0:03:
44]} Nxb6 {[%emt 0:00:26] KN-K3P. The position is equal.} 58. a5 {[%emt 0:00:
02]} Nd7 {[%emt 0:06:45]} 59. Ke4 {[%emt 0:00:03] Black must now prevent Kf4.}
Nc5+ {[%emt 0:00:21]} 60. Kf4 {[%emt 0:00:29]} Nd3+ $1 {[%emt 0:00:05]} 61.
Kxg4 {[%emt 0:02:10] Hoping for a6.} Nxf2+ $11 {[%emt 0:00:04] KN-KPP} 62. Kf3
{[%emt 0:00:27]} Nd3 {[%emt 0:00:06]} 63. a6 {[%emt 0:00:09] a7 would kill now.
} Ne5+ {[%emt 0:00:02]} 64. Kf4 {[%emt 0:01:23] White threatens a7 and mate.}
Nc6 {[%emt 0:00:37]} 65. Kg5 {[%emt 0:00:20]} Kf7 {[%emt 0:05:36]} 66. Kf5 {
[%emt 0:00:50]} Na7 {[%emt 0:01:44]} 67. Ke5 {[%emt 0:00:23]} Kg6 {[%emt 0:00:
00]} 68. Kd6 {[%emt 0:00:20]} Kg5 {[%emt 0:00:15]} 69. Kc7 {[%emt 0:00:04]} Kg4
{[%emt 0:00:16]} 70. Kb7 {[%emt 0:01:12]} Nb5 {[%emt 0:00:03]} 71. Kb6 {
[%emt 0:00:13]} Nd6 {[%emt 0:00:01]} 72. Kc6 {[%emt 0:00:43]} Nc8 {[%emt 0:00:
00]} 73. Kc7 {[%emt 0:00:40]} Na7 {[%emt 0:00:02]} 74. Kb8 {[%emt 0:00:22]} Nb5
{[%emt 0:00:27]} 75. Kb7 {[%emt 0:00:05]} Kxg3 {[%emt 0:00:07] KN-KP} 76. Kb6 {
[%emt 0:00:08]} Nd6 {[%emt 0:00:01]} 77. Kc6 {[%emt 0:00:17]} Nc8 {[%emt 0:00:
00]} 78. Kb7 {[%emt 0:01:33]} Nd6+ {[%emt 0:00:09]} 79. Kc7 {[%emt 0:00:37]}
Nb5+ $1 {[%emt 0:00:21]} 80. Kb6 {[%emt 0:00:22]} Nd6 {[%emt 0:00:02]} 81. Kc7
{[%emt 0:00:34]} Nb5+ $1 {[%emt 0:00:27]} 82. Kb6 {[%emt 0:00:17] Black
defended with fortune. Weighted Error Value: White=0.20 (precise) /Black=0.27 
(precise)} 1/2-1/2

[Event "44th Chess Olympiad Women 2022"]
[Site "Chennai"]
[Date "2022.08.05"]
[Round "7.5"]
[White "Belenkaya, Dina"]
[Black "Mkrtchian, Lilit"]
[Result "1/2-1/2"]
[WhiteElo "2256"]
[BlackElo "2362"]
[Annotator "TA"]
[PlyCount "99"]
[EventDate "2022.??.??"]
[TimeControl "60"]

{[%evp 15,99,15,16,-8,14,-8,0,-28,-7,-36,-21,-48,-24,-54,-47,-85,-79,-107,-70,
-208,-209,-280,-267,-290,-297,-284,-262,-272,-293,-419,-380,-408,-405,-381,
-273,-465,-464,-595,-464,-703,-702,-658,-182,-258,-168,-239,-104,-69,112,-231,
-222,-394,-395,-419,-433,-381,-330,-470,-151,-155,-157,-167,-141,-161,-108,
-125,-128,-131,-125,-268,-234,-262,-271,-272,-220,-221,-222,-178,-143,-270,
-112,-126,-129,-116,-122,-116]} 1. e4 {[%emt 0:00:04]} c5 {[%emt 0:00:43]} 2.
Nf3 {[%emt 0:00:12]} Nc6 {[%emt 0:00:27]} 3. Bb5 {[%emt 0:00:20]} d6 {[%emt 0:
00:00]} 4. O-O {[%emt 0:02:00]} Bd7 {[%emt 0:00:36]} 5. Re1 {[%emt 0:02:46]}
Nf6 {[%emt 0:00:23]} 6. c3 {[%emt 0:08:28]} a6 {[%emt 0:00:26]} 7. Bf1 {
[%emt 0:03:46]} Bg4 {[%emt 0:00:22]} 8. d3 {[%emt 0:01:00]} e6 {[%emt 0:08:29]}
9. Nbd2 {[%emt 0:01:10] B51: Sicilian: Moscow Variation (3 Bb5+) without 3...
Bd7.} Be7 {[%emt 0:00:27]} 10. a3 {[%emt 0:06:06]} (10. h3 $5 {[%cal Rh3g4]}
Bh5 11. g4 $11) 10... d5 {[%emt 0:02:32] [#]} 11. Qc2 $146 {[%emt 0:12:15] The
position is equal.} ({Predecessor:} 11. e5 Nd7 12. Qa4 Bh5 13. h4 Bg6 14. Qg4
O-O 15. h5 Bf5 16. Qg3 h6 17. c4 {½-½ (33) Hunt,H (2440)-Williams,S (2472)
London 2018}) 11... Rc8 {[%emt 0:04:23]} 12. Be2 {[%emt 0:02:43]} O-O {[%emt 0:
00:00]} 13. Nf1 {[%emt 0:01:15]} b5 {[%emt 0:20:10]} 14. Ng3 {[%emt 0:02:11]}
d4 {[%emt 0:05:39]} 15. c4 {[%emt 0:11:56]} bxc4 {[%emt 0:02:18]} 16. dxc4 {
[%emt 0:01:56]} h5 {[%emt 0:21:02]} 17. h4 {[%emt 0:07:18]} (17. Rd1 $15) 17...
Nd7 $1 $19 {[%emt 0:16:02]} 18. Ng5 {[%emt 0:04:03]} Nde5 {[%emt 0:00:15]
Hoping for ...d3.} 19. Bxg4 {[%emt 0:18:42]} hxg4 {[%emt 0:00:14]} 20. Qd1 {
[%emt 0:07:45]} Qd7 {[%emt 0:08:37]} (20... Nxc4 21. Qxg4 N6e5 22. Qd1 $17) 21.
f4 {[%emt 0:00:34]} gxf3 $1 {[%emt 0:00:04]} (21... Nxc4 $2 22. Qa4 Nb6 23. Qb3
$19) 22. gxf3 {[%emt 0:00:32]} (22. Nxf3 $142 Nxc4 23. b3) 22... f6 {[%emt 0:
00:00]} 23. Nh3 {[%emt 0:00:22]} d3 {[%emt 0:00:21]} 24. Kh1 {[%emt 0:02:07]}
Nxc4 {[%emt 0:01:25]} 25. Bd2 $2 {[%emt 0:01:11]} (25. b3 N4a5 26. Ra2) 25...
Nd4 {[%emt 0:00:29]} 26. Nh5 {[%emt 0:01:14]} Qe8 {[%emt 0:03:09]} 27. N3f4 {
[%emt 0:00:14]} (27. N5f4 $142 Nxb2 28. Qc1) 27... e5 {[%emt 0:00:29]} 28. Rg1
{[%emt 0:00:03]} Rf7 $2 {[%emt 0:00:29]} (28... exf4 29. Nxg7 Qd7) 29. Nxd3 {
[%emt 0:02:05]} (29. Nd5 $142 Nxd2 30. Qxd2 Nxf3 31. Qxd3 Nxg1 32. Rxg1) 29...
Qd7 {[%emt 0:00:41][%cal Rd7h3]} 30. Nf2 {[%emt 0:00:13] Inhibits Qh3+.} (30.
Rg3 $142) 30... Rd8 {[%emt 0:00:32]} (30... Kh8 $19 {has better winning
chances. Threatens to win with ...f5.} 31. Bc3 f5) 31. Bh6 $17 {[%emt 0:00:12]
[%cal Rh6g7]} Bf8 {[%emt 0:00:15] [#]} (31... Nxb2 32. Qd2 Nxf3 33. Qxb2 $14) (
31... g5 $1 $15 {keeps the upper hand.} 32. Qd3 Qe6) 32. Ng4 $2 {[%emt 0:00:30]
} (32. Bxg7 $1 $16 {is forced if you want to stay better.} Bxg7 33. Rxg7+ Kf8
34. Rg6 (34. Nxf6 Qe6 $16)) 32... Kh8 {[%emt 0:00:25]} 33. Bc1 {[%emt 0:00:24]}
(33. b3 {is a better defense.} Na5 34. b4) 33... f5 $19 {[%emt 0:00:27]} 34.
exf5 {[%emt 0:00:42]} Qxf5 {[%emt 0:00:12]} 35. Bg5 {[%emt 0:00:10]} Rdd7 {
[%emt 0:00:30]} 36. Ng3 {[%emt 0:00:35]} (36. Nh2 {might work better.}) 36...
Qxf3+ $2 {[%emt 0:00:22]} (36... Qe6 $19 37. Nh2 {[#]} Nxf3 $1) 37. Qxf3 $17 {
[%emt 0:00:02]} Nxf3 {[%emt 0:00:04]} (37... Rxf3 38. Rac1 Rxg3 39. Rxg3 $16)
38. Rg2 {[%emt 0:00:57]} Rd4 {[%emt 0:00:00]} 39. Ne2 {[%emt 0:00:25]} Rd3 {
[%emt 0:00:14]} (39... Rd6 $19 40. Nc3 Kg8) 40. Ng1 {[%emt 0:01:18]} Nxg5 {
[%emt 0:01:08]} 41. hxg5 {[%emt 0:30:01]} Rf5 {[%emt 0:30:26]} 42. Nh2 {
[%emt 0:01:10]} (42. Rc1 $17 Ne3 43. Nxe3 (43. Rg3 $2 Nxg4 44. Rxg4 Be7 $19)
43... Rxe3 44. Rd1) 42... g6 {[%emt 0:00:00]} 43. Rc1 {[%emt 0:00:00]} Ne3 {
[%emt 0:00:00]} 44. Rg3 {[%emt 0:00:00]} e4 {[%emt 0:00:00] Strongly
threatening ...Bd6.} 45. Rh3+ {[%emt 0:00:00]} Kg7 {[%emt 0:00:00]} 46. Re1 {
[%emt 0:00:00]} Nd1 {[%emt 0:00:00]} ({Don't do} 46... Rxg5 47. Rhxe3 (47.
Rexe3 c4 $15) 47... Rh5 48. Rxd3 (48. Rxe4 Bd6 $11) 48... exd3 49. Ngf3 $14)
47. Ng4 {[%emt 0:00:00]} (47. Rxd3 $17 Nf2+ 48. Kg2 Nxd3 49. Rxe4) 47... Rxg5 {
[%emt 0:00:00]} ({But not} 47... Nxb2 $2 48. Re2 Nc4 49. Rxe4 $19) (47... Rd4
$19 {is more deadly.} 48. Ne2 Rd3) 48. Rxd3 {[%emt 0:00:00] Remove Defender.
Black is better.} exd3 {[%emt 0:00:00]} 49. Rxd1 {[%emt 0:00:00] And now Ne3
would win.} Rxg4 {[%emt 0:00:00]} 50. Rxd3 {[%emt 0:00:00] Weighted Error
Value: White=0.59/Black=0.56} 1/2-1/2

[Event "44th Chess Olympiad Women 2022"]
[Site "Chennai"]
[Date "2022.08.05"]
[Round "7.5"]
[White "Danielian, Elina"]
[Black "Efroimski, Marsel"]
[Result "1/2-1/2"]
[WhiteElo "2441"]
[BlackElo "2456"]
[Annotator "TA"]
[PlyCount "98"]
[EventDate "2022.??.??"]
[TimeControl "60"]

{[%evp 17,98,0,17,0,24,0,17,7,12,0,19,15,21,12,20,8,22,-8,0,-48,0,0,0,0,8,-27,
57,62,65,47,66,72,66,0,0,0,0,-12,0,-54,0,0,0,0,0,-41,-57,-69,-45,-106,-105,
-119,-89,-223,-211,-212,-212,-230,-126,-126,-125,-277,-268,-277,-104,-180,-170,
-192,-193,-229,-273,-272,-272,-265,-260,-260,-112,-114,-112,-133,0,0,0]} 1. Nf3
{[%emt 0:00:04]} c5 {[%emt 0:00:05]} 2. c4 {[%emt 0:00:47]} Nc6 {[%emt 0:00:05]
} 3. g3 {[%emt 0:02:30]} g6 {[%emt 0:00:45]} 4. Bg2 {[%emt 0:01:02]} Bg7 {
[%emt 0:00:05]} 5. O-O {[%emt 0:02:20]} d6 {[%emt 0:00:03]} 6. Nc3 {[%emt 0:00:
00]} Rb8 {[%emt 0:00:06]} 7. e3 {[%emt 0:13:38]} Nf6 {[%emt 0:00:23]} 8. d4 {
[%emt 0:01:30]} O-O {[%emt 0:01:19]} 9. h3 {[%emt 0:07:42]} a6 {[%emt 0:07:36]}
10. a4 {[%emt 0:02:24] E65: King's Indian: Fianchetto: 6...c5 7 0-0 without d5
by White.} Nb4 {[%emt 0:05:27]} 11. Qe2 {[%emt 0:16:47]} (11. e4 $5 {[%cal
Rd4c5]}) 11... Nd7 {[%emt 0:05:50]} 12. Rd1 {[%emt 0:02:26] [#]} b6 $146 {
[%emt 0:07:20]} ({Predecessor:} 12... Qa5 13. Bd2 Qc7 14. Rac1 b6 15. Nd5 Nxd5
16. cxd5 Qd8 17. Bc3 b5 18. dxc5 Bxc3 19. Rxc3 Nxc5 20. axb5 Rxb5 {1-0 (28)
Makoto,R (2166)-Gaealafshwe,B (2117) Maputo 2011}) 13. d5 {[%emt 0:07:19]} (13.
b3 {with more complications.} Bb7 14. Bb2 e6 15. Na2) 13... Qc7 {[%emt 0:05:34]
} 14. e4 {[%emt 0:00:34]} e5 {[%emt 0:05:37]} 15. Be3 {[%emt 0:10:32]} Nf6 {
[%emt 0:09:57]} 16. Ne1 {[%emt 0:03:50]} Ne8 {[%emt 0:02:05]} 17. f4 {[%emt 0:
00:00]} f5 {[%emt 0:02:20]} 18. Nf3 {[%emt 0:02:27]} (18. fxe5 $11 Bxe5 19.
exf5) 18... fxe4 {[%emt 0:07:29]} ({Black should try} 18... Bh6 $1 $15) 19.
Nxe4 $11 {[%emt 0:00:42]} Bf5 $1 {[%emt 0:01:24]} 20. Nfg5 {[%emt 0:01:24]} Qe7
{[%emt 0:04:13]} 21. Rd2 {[%emt 0:05:47]} h6 {[%emt 0:05:25]} (21... Nf6 $11)
22. Ne6 $1 $14 {[%emt 0:00:14]} Bxe6 {[%emt 0:00:12]} 23. dxe6 {[%emt 0:00:03]}
Qxe6 {[%emt 0:01:05]} 24. fxe5 {[%emt 0:01:09] White is more active.} Qxe5 {
[%emt 0:04:07]} 25. Rf1 {[%emt 0:04:36]} (25. Bf4 $14 Qe7 26. Bxd6 (26. Nxd6
Qxe2 27. Rxe2 g5 $17) 26... Nxd6 27. Rxd6) 25... Rxf1+ $11 {[%emt 0:01:46]} 26.
Qxf1 {[%emt 0:00:03]} Qe7 {[%emt 0:03:16]} 27. Qf4 {[%emt 0:05:12]} Rd8 {
[%emt 0:02:28]} 28. Bf2 {[%emt 0:00:26]} (28. Qg4 $11 g5 29. h4) 28... g5 {
[%emt 0:04:04]} (28... Kh7 $15) 29. Qf5 {[%emt 0:00:32]} Nc7 {[%emt 0:04:49]
[%cal Ye8c7,Yc7e6,Ye6d4]} 30. Qg6 {[%emt 0:04:17]} Ne6 {[%emt 0:03:58]} 31. Nc3
{[%emt 0:00:08]} Qf7 {[%emt 0:01:00]} 32. Qe4 {[%emt 0:01:18]} Nd4 {[%emt 0:00:
44]} 33. Qg4 {[%emt 0:00:09]} (33. Nd5 $15 Nxd5 34. Qxd5) 33... Qxc4 $17 {
[%emt 0:01:15]} 34. h4 {[%emt 0:00:43]} gxh4 {[%emt 0:02:49]} 35. Be3 {[%emt 0:
00:40]} (35. Bf1 $17 Qb3 36. Bxd4 cxd4 37. Rxd4 Qxb2 38. Rxb4 Qxc3 39. Qxh4)
35... Qe6 {[%emt 0:00:33]} 36. Qxe6+ {[%emt 0:00:46]} Nxe6 {[%emt 0:00:00]} 37.
Nd5 {[%emt 0:00:22]} Nxd5 {[%emt 0:00:43]} (37... hxg3 $19 {Hoping for ...a5.}
38. Nxb4 cxb4 39. Bxb6 Rc8) 38. Bxd5 {[%emt 0:00:01]} Kf7 {[%emt 0:00:00]} (
38... hxg3 39. Bxe6+ Kf8 40. Bf4 $16) 39. b4 $2 {[%emt 0:00:42]} (39. gxh4 $17
Ke7 40. Re2) 39... Ke7 $19 {[%emt 0:00:37]} (39... cxb4 $2 40. gxh4 Ke7 41.
Bxb6 $19) 40. gxh4 {[%emt 0:00:20]} Nd4 {[%emt 0:01:05] Against Re2} (40...
cxb4 $2 41. Bxb6 Rb8 42. Ba7 $19) (40... Bd4 $19 {and Black stays clearly on
top.} 41. Bxd4 Nxd4) 41. Rg2 {[%emt 0:30:19]} (41. Rf2 $17 Rd7 42. Kg2 (42.
Rf7+ $2 Ke8 $19)) 41... Nf5 {[%emt 0:03:01]} 42. Bd2 {[%emt 0:00:00]} Bd4+ {
[%emt 0:01:07]} 43. Kf1 {[%emt 0:00:00] [#]} cxb4 $1 {[%emt 0:00:47]} 44. Ke2 {
[%emt 0:00:00]} Bc3 {[%emt 0:02:03]} ({Wrong is} 44... Nxh4 $2 45. Rg4 Nf5 46.
Bxb4 $17) 45. Bc1 {[%emt 0:00:00]} Kf6 {[%emt 0:07:06]} (45... Nxh4 $2 46. Rf2
Bf6 47. Rf4 $19) 46. Kd3 {[%emt 0:00:00]} Rd7 {[%emt 0:03:26]} ({But not} 46...
Nxh4 $2 47. Rf2+ Ke5 48. Bc4 $17) (46... Re8 $19 {And now ...Re1 would win.}
47. Be4 Re5) 47. Rf2 $17 {[%emt 0:00:00]} Ke5 {[%emt 0:02:13]} 48. Bc4 {
[%emt 0:00:00] [#] A strong pair of Bishops.} Rg7 {[%emt 0:02:22]} ({Not} 48...
Nxh4 49. Bf4+ Kf6 50. Be3+ Ke5 51. Bf4+ Kf6 52. Be3+ Kg7 53. Bxa6 $15) (48...
d5 $1 $17 {[%cal Rd5c4]} 49. Bf4+ Ke6 50. Bxa6 Nd6 51. Re2+ Kf5 52. Bxd6 Rxd6
53. Bc8+ Kf4) 49. Re2+ $11 {[%emt 0:00:00]} Kf6 {[%emt 0:00:41] Weighted Error
Value: White=0.26 (precise) /Black=0.23 (precise)} 1/2-1/2

[Event "44th Chess Olympiad Women 2022"]
[Site "Chennai"]
[Date "2022.08.05"]
[Round "7.5"]
[White "Lahav, Michal"]
[Black "Gaboyan, Susanna"]
[Result "0-1"]
[WhiteElo "2191"]
[BlackElo "2270"]
[Annotator "NA RC"]
[PlyCount "133"]
[EventDate "2022.??.??"]
[TimeControl "60"]

1. e4 {[%emt 0:00:06]} c5 {[%emt 0:00:06]} 2. c3 {[%emt 0:00:28]} Nf6 {[%emt 0:
00:00]} 3. e5 {[%emt 0:00:12]} Nd5 {[%emt 0:00:07]} 4. Nf3 {[%emt 0:00:07]} Nc6
{[%emt 0:00:15]} 5. Bc4 {[%emt 0:00:31]} Nb6 {[%emt 0:00:37]} 6. Bb3 {[%emt 0:
00:00]} d5 {[%emt 0:00:31]} 7. exd6 {[%emt 0:00:11]} Qxd6 {[%emt 0:00:12]} 8.
O-O {[%emt 0:00:17]} Be6 {[%emt 0:00:29]} 9. Bxe6 {[%emt 0:05:55]} Qxe6 {
[%emt 0:01:17]} 10. a4 {[%emt 0:00:09]} Qd7 {[%emt 0:05:09]} 11. d4 {[%emt 0:
00:00]} cxd4 {[%emt 0:00:18]} 12. cxd4 {[%emt 0:03:13]} e6 {[%emt 0:00:37]} 13.
Nc3 {[%emt 0:00:57]} Be7 {[%emt 0:01:26]} 14. a5 {[%emt 0:03:44]} Nd5 {[%emt 0:
00:00]} 15. a6 {[%emt 0:11:33]} b6 {[%emt 0:04:10]} 16. Qa4 {[%emt 0:00:03]}
O-O {[%emt 0:03:43]} 17. Nb5 {[%emt 0:01:04]} Rfd8 {[%emt 0:08:16]} 18. Bd2 {
[%emt 0:09:40]} Rac8 {[%emt 0:07:35]} 19. Rfc1 {[%emt 0:01:19]} h6 {[%emt 0:00:
00]} 20. h3 {[%emt 0:00:37]} Bf6 {[%emt 0:05:59]} 21. Rc4 {[%emt 0:13:03]} Nce7
{[%emt 0:07:46]} 22. b3 {[%emt 0:01:18]} Nf5 {[%emt 0:06:09]} 23. Ne5 {[%emt 0:
00:00]} Bxe5 {[%emt 0:01:44]} 24. dxe5 {[%emt 0:00:05]} Rxc4 {[%emt 0:08:09]}
25. Qxc4 {[%emt 0:01:59]} Nde7 {[%emt 0:02:03]} 26. Bb4 {[%emt 0:02:17]} Rc8 {
[%emt 0:03:01]} 27. Qe2 {[%emt 0:00:03]} Nd4 {[%emt 0:01:52]} 28. Nxd4 {
[%emt 0:05:54]} Qxd4 {[%emt 0:00:14]} 29. Qe1 {[%emt 0:00:03]} Nd5 {[%emt 0:00:
00]} 30. Bd2 {[%emt 0:02:08]} Qd3 {[%emt 0:04:17]} 31. b4 {[%emt 0:04:35]} Rc2
{[%emt 0:00:09]} 32. Rd1 {[%emt 0:00:15]} Qxa6 {[%emt 0:00:21]} 33. Qe4 {
[%emt 0:00:56]} Qc4 {[%emt 0:04:39]} 34. Qf3 {[%emt 0:01:12]} Qc7 {[%emt 0:00:
00]} 35. Bf4 {[%emt 0:01:00]} Rc3 {[%emt 0:01:42]} 36. Be3 {[%emt 0:00:44]}
Qxe5 {[%emt 0:01:15]} 37. Re1 {[%emt 0:00:31]} Qc7 {[%emt 0:04:05]} 38. Kh1 {
[%emt 0:00:32]} Qc4 {[%emt 0:00:50]} 39. Qg3 {[%emt 0:00:27]} Qxb4 {[%emt 0:00:
00]} 40. Qb8+ {[%emt 0:00:05]} Kh7 {[%emt 0:01:56]} 41. Bd2 {[%emt 0:04:11]}
Rxh3+ {[%emt 0:02:32]} 42. gxh3 {[%emt 0:00:25]} Qxd2 {[%emt 0:00:11]} 43. Qe5
{[%emt 0:07:16]} Qxf2 {[%emt 0:02:12]} 44. Qe4+ {[%emt 0:00:45]} g6 {[%emt 0:
00:00]} 45. Ra1 {[%emt 0:05:20]} a5 {[%emt 0:01:43]} 46. Ra3 {[%emt 0:04:08]}
Qf1+ {[%emt 0:02:52]} 47. Kh2 {[%emt 0:00:02]} Qf4+ {[%emt 0:00:07]} 48. Qxf4 {
[%emt 0:00:02]} Nxf4 {[%emt 0:00:06]} 49. Kg3 {[%emt 0:00:04]} Nd5 {[%emt 0:00:
00]} 50. Kf3 {[%emt 0:00:02]} g5 {[%emt 0:00:24]} 51. Ke4 {[%emt 0:00:20]} Kg6
{[%emt 0:00:28]} 52. Ke5 {[%emt 0:00:18]} h5 {[%emt 0:01:17]} 53. Ra1 {[%emt 0:
00:00]} Nf4 {[%emt 0:08:28]} 54. Ra3 {[%emt 0:02:00]} f6+ {[%emt 0:00:13]} 55.
Ke4 {[%emt 0:00:10]} Nd5 {[%emt 0:01:07]} 56. Ra1 {[%emt 0:01:26]} Kf7 {
[%emt 0:00:23]} 57. Kd4 {[%emt 0:01:17]} Ke7 {[%emt 0:00:23]} 58. Kc4 {[%emt 0:
00:00]} Kd6 {[%emt 0:03:30]} 59. Re1 {[%emt 0:00:27]} g4 {[%emt 0:01:26]} 60.
hxg4 {[%emt 0:01:17]} hxg4 {[%emt 0:00:09]} 61. Kd4 {[%emt 0:00:32]} f5 {
[%emt 0:00:30]} 62. Rh1 {[%emt 0:00:12]} g3 {[%emt 0:00:13]} 63. Rh8 {[%emt 0:
00:00]} f4 {[%emt 0:00:39]} 64. Ke4 {[%emt 0:00:07]} g2 {[%emt 0:00:17]} 65.
Rd8+ {[%emt 0:00:18]} Ke7 {[%emt 0:00:06]} 66. Rg8 {[%emt 0:00:03]} Nf6+ {
[%emt 0:00:03]} 67. Kd4 {[%emt 0:00:06]} 0-1